{"text_format":"1","workbook":"xlsx","n_sheets":19,"sheets":["Working","ChangeLog","Setup","Players","Matrix","Table","Round1","Round2","Round3","Round4","Round5","Round6","Round7","Round8","Round9","NAF","GroupMatrix","GroupFixtures","GroupTable"],"not_rendered":{"charts":0,"images":0,"macros":1,"external_links":0,"defined_names":41,"comments":1,"pivot_tables":0},"unopened":[],"bounds":{"document_bytes":16777216,"sheet_cells":100000,"rows_first":2000,"rows_last":500,"rows_between":2000,"halvings":0,"cell_chars":16384,"cell_head_chars":4096},"cells_cut":0,"cells_raw":0,"read":"whole","date_system":"1900"}

{"sheet":"Working","index":0,"n_rows":34,"n_cols":31,"rows_kept":34,"cut":false,"hidden":false,"merged":[]}
[null,null,null,null,null,null,null,null,null,null,null,null,null,null,null,null,null,null,null,null,null,null,null,null,null,"Latest Rd:",4]
[null,null,null,null,null,null,null,null,null,null,null,null,null,null,null,null,null,null,null,null,null,null,null,null,null,"Players:",20]
[null,null,null,null,null,null,null,null,null,null,null,null,null,null,null,null,null,null,null,null,null,null,null,null,null,"Display",14,"Columns"]
[null,null,null,null,null,null,null,null,null,null,null,null,null,null,null,null,null,null,null,null,null,null,null,null,null,"Enter",7,"Columns"]
[null,null,null,null,null,null,null,null,null,null,null,null,null,null,null,null,null,null,null,null,null,null,null,null,null,"Max random",3]
[null,null,null,null,null,null,null,null,null,null,null,null,null,null,null,null,null,null,null,null,null,null,null,null,null,"Number of Groups",4]
[null,null,null,null,null,null,null,null,null,null,null,null,null,null,null,null,null,null,null,null,null,null,null,null,null,"Team Size",5,null,"Group"]
[null,null,null,null,null,null,null,null,null,null,null,null,null,null,null,null,null,null,null,null,null,null,null,null,null,null,null,null,"Individual"]
[]
[null,null,null,null,null,null,null,null,null,null,null,null,null,null,null,null,null,null,null,null,null,null,null,null,null,null,null,null,"Cumulative"]
[null,null,null,null,null,null,null,null,null,null,null,null,null,null,null,null,null,null,null,null,null,null,null,null,null,null,"Amazons"]
[null,null,null,null,null,null,null,null,null,null,null,null,null,null,null,null,null,null,null,null,null,null,null,null,null,null,"Chaos",null,null,null,"Initial Display Columns"]
[null,null,null,null,null,null,null,null,null,null,null,null,null,null,null,null,null,null,null,null,null,null,null,null,null,null,"Chaos Dwarves",null,null,null,"Player"]
[null,null,null,null,null,null,null,null,null,null,null,null,null,null,null,null,null,null,null,null,null,null,null,null,null,null,"Chaos Pact",null,null,null,"Points"]
[null,null,null,null,null,null,null,null,null,null,null,null,null,null,null,null,null,null,null,null,null,null,null,null,null,null,"Dark Elves",null,null,null,"TD For"]
[null,null,null,null,null,null,null,null,null,null,null,null,null,null,null,null,null,null,null,null,null,null,null,null,null,null,"Dwarves",null,null,null,"Cas For"]
[null,null,null,null,null,null,null,null,null,null,null,null,null,null,null,null,null,null,null,null,null,null,null,null,null,null,"Elves",null,null,null,{"$f":"Setup!F8","v":"Bonus 1"}]
[null,null,null,null,null,null,null,null,null,null,null,null,null,null,null,null,null,null,null,null,null,null,null,null,null,null,"Goblins",null,null,null,{"$f":"Setup!F9","v":"Bonus 2"}]
[null,null,null,null,null,null,null,null,null,null,null,null,null,null,null,null,null,null,null,null,null,null,null,null,null,null,"Halflings",null,null,null,"TD Against"]
[null,null,null,null,null,null,null,null,null,null,null,null,null,null,null,null,null,null,null,null,null,null,null,null,null,null,"High Elves",null,null,null,"Cas Against"]
[null,null,null,null,null,null,null,null,null,null,null,null,null,null,null,null,null,null,null,null,null,null,null,null,null,null,"Humans",null,null,null,"TD Net"]
[null,null,null,null,null,null,null,null,null,null,null,null,null,null,null,null,null,null,null,null,null,null,null,null,null,null,"Khemri",null,null,null,"Cas Net"]
[null,null,null,null,null,null,null,null,null,null,null,null,null,null,null,null,null,null,null,null,null,null,null,null,null,null,"Lizardmen",null,null,null,"Wins"]
[null,null,null,null,null,null,null,null,null,null,null,null,null,null,null,null,null,null,null,null,null,null,null,null,null,null,"Necromantic",null,null,null,"Draws"]
[null,null,null,null,null,null,null,null,null,null,null,null,null,null,null,null,null,null,null,null,null,null,null,null,null,null,"Norse",null,null,null,"Losses"]
[null,null,null,null,null,null,null,null,null,null,null,null,null,null,null,null,null,null,null,null,null,null,null,null,null,null,"Nurgle's Rotters",null,null,null,"Opp Score"]
[null,null,null,null,null,null,null,null,null,null,null,null,null,null,null,null,null,null,null,null,null,null,null,null,null,null,"Ogres"]
[null,null,null,null,null,null,null,null,null,null,null,null,null,null,null,null,null,null,null,null,null,null,null,null,null,null,"Orc"]
[null,null,null,null,null,null,null,null,null,null,null,null,null,null,null,null,null,null,null,null,null,null,null,null,null,null,"Skaven"]
[null,null,null,null,null,null,null,null,null,null,null,null,null,null,null,null,null,null,null,null,null,null,null,null,null,null,"Slann"]
[null,null,null,null,null,null,null,null,null,null,null,null,null,null,null,null,null,null,null,null,null,null,null,null,null,null,"Undead"]
[null,null,null,null,null,null,null,null,null,null,null,null,null,null,null,null,null,null,null,null,null,null,null,null,null,null,"Underworld"]
[null,null,null,null,null,null,null,null,null,null,null,null,null,null,null,null,null,null,null,null,null,null,null,null,null,null,"Vampires"]
[null,null,null,null,null,null,null,null,null,null,null,null,null,null,null,null,null,null,null,null,null,null,null,null,null,null,"Wood Elves"]

{"sheet":"ChangeLog","index":1,"n_rows":23,"n_cols":4,"rows_kept":23,"cut":false,"hidden":false,"merged":[]}
[null,"This spreadsheet is based on one by Kaper on an Excel forum: http://www.excelforum.com/excel-programming-vba-macros/1105569-swiss-pairing-algorithm-in-excel-to-organize-a-chess-tournament.html"]
[null,"Massive thanks due to him!"]
[null,"The original was used for Chess, and it has been adapted to work for Blood Bowl by sann0638 (Mike Davies)"]
[]
["Version","Summary","Date","Notes"]
["1.0","Multi-sheet version of the chess","2016-06-19"]
[1.1000000000000001,"Remove Black and White stuff","2016-06-19"]
[1.2,"Change to TDs to generate points","2016-06-19"]
[null,"Got the Swiss working properly","2016-06-19","Published."]
[1.3,"More help information.","2016-06-20"]
[null,"Added Table","2016-06-20"]
[null,"Added Opponent Score","2016-06-20"]
[2.1,"Big overhaul to where info stored","2016-06-21"]
[2.2000000000000002,"Putting in the Score formula","2016-06-21","Published."]
[3.1,"Added all tiebreaker columns","2016-06-22"]
[null,"Realised opponent score was wrong, fixed it.","2016-06-22"]
[3.2,"Fixed problem with sorting the table.","2016-06-23","Published."]
[3.3,"Tiebreakers implemented","2016-06-24"]
[null,"NAF Upload file","2016-06-24","Published."]
[4.0999999999999996,"Group results and matrix added","2016-06-25"]
[null,"Group results fully implemented","2016-06-26"]
[4.2,"Fixed net casualties","2016-06-28"]
[4.3,"Tiebreakers corrected, yet again!","2016-09-17","Published."]

{"sheet":"Setup","index":2,"n_rows":71,"n_cols":10,"rows_kept":71,"cut":false,"hidden":false,"merged":[]}
["SCORING SETUP"]
[]
["Points for…",null,null,null,null,"Entry Data"]
["Win by at least 2 TD",10,null,null,null,"Player"]
["Win by 1 TD",6,null,null,null,"Points"]
["Draw",4,null,null,null,"TD",null,null,null,"Buttons for running a tournament:"]
["Lose by 1 TD",1,null,null,null,"Cas"]
["Lose by at least 2 TD",1,null,null,null,"Bonus 1","Bonus1 Name"]
[null,null,null,null,null,"Bonus 2","Bonus2 Name"]
["Bonus points for TD/Cas etc",null,null,null,null,"Group"]
["Points per TD",1]
["Max TD Bonus Pts",3]
["Points per Cas",1]
["Max Cas Bonus Pts",3]
[{"$f":"F8&\" Max Bonus Pts\"","v":"Bonus 1 Max Bonus Pts"},10]
[{"$f":"F9&\" Max Bonus Pts\"","v":"Bonus 2 Max Bonus Pts"},10]
[]
["Test Scoring System Here"]
["Your Score (required)",1]
["Opponent Score (required)",4]
["Your Cas (optional)",3]
[{"$f":"\"Your \"&F8&\" (optional)\"","v":"Your Bonus 1 (optional)"},1]
[{"$f":"\"Your \"&F9&\" (optional)\"","v":"Your Bonus 2 (optional)"},2]
[]
["Your Points",{"$f":"fctScore(B19,B20,B21,B22,B23)","v":6}]
[]
["Tie Breaks"]
["Player"]
["Points","Order"]
["TD For"]
["TD Against"]
["TD Net",1]
["Cas For"]
["Cas Against"]
["Cas Net"]
[{"$f":"F8","v":"Bonus 1"}]
[{"$f":"F9","v":"Bonus 2"}]
["Wins"]
["Draws"]
["Losses"]
["Opp Score"]
[]
[]
["Group or Individual Swiss?"]
["Group/Ind Swiss","Individual"]
["Group Options"]
["Points for a win",2]
["Points for a draw",1]
["Points for a loss",0]
["Points for a group win",2]
["Points for a group draw",1]
["Points for a group loss",0]
[]
["Group Tie Breaks",17]
["Group"]
["Points"]
["TD For"]
["TD Against"]
["Net TDs"]
["Cas For"]
["Cas Against"]
["Net Cas"]
[{"$f":"\"Group Total \"&A32","v":"Group Total TD Net"}]
[{"$f":"\"Group Total \"&A33","v":"Group Total Cas For"}]
["Group Wins"]
["Groups Draws"]
["Group Losses"]
["Individual Wins"]
["Individual Draws"]
["Individual Losses"]
["Total Individual Points",1]

{"sheet":"Players","index":3,"n_rows":51,"n_cols":13,"rows_kept":51,"cut":false,"hidden":false,"merged":[]}
["Ord","Display Name","NAF Name","NAF Number","Race","Group",null,null,null,null,null,null,"Groups"]
[{"$f":"IF(B2=\"\",\"\",MAX(A$1:A1)+1)","v":1},"Alex",{"$f":"B2","v":"Alex"},13077,"Vampires",{"$f":"OFFSET($M$1,ROUNDUP(A2/TeamSize,0),0)","v":"England"},null,null,null,null,null,null,"England"]
[{"$f":"IF(B3=\"\",\"\",MAX(A$1:A2)+1)","v":2},"Mike","Mike",7015,"High Elves","England",null,null,null,null,null,null,"Scotland"]
[{"$f":"IF(B4=\"\",\"\",MAX(A$1:A3)+1)","v":3},"Linus","Linus",11207,"Amazons","England",null,null,null,null,null,null,"Wales"]
[{"$f":"IF(B5=\"\",\"\",MAX(A$1:A4)+1)","v":4},"Player4","Player4",12997,"Dwarves","England",null,null,null,null,null,null,"Ireland"]
[{"$f":"IF(B6=\"\",\"\",MAX(A$1:A5)+1)","v":5},"Player5","Player5",10352,"Chaos Pact","England"]
[{"$f":"IF(B7=\"\",\"\",MAX(A$1:A6)+1)","v":6},"Player6","Player6",5306,"Nurgle's Rotters","Scotland"]
[{"$f":"IF(B8=\"\",\"\",MAX(A$1:A7)+1)","v":7},"Player7","Player7",15825,"Norse","Scotland"]
[{"$f":"IF(B9=\"\",\"\",MAX(A$1:A8)+1)","v":8},"Player8","Player8",3943,"Chaos Dwarves","Scotland"]
[{"$f":"IF(B10=\"\",\"\",MAX(A$1:A9)+1)","v":9},"Player9","Player9",2315,"Chaos Dwarves","Scotland"]
[{"$f":"IF(B11=\"\",\"\",MAX(A$1:A10)+1)","v":10},"Player10","Player10",12648,"Halflings","Scotland"]
[{"$f":"IF(B12=\"\",\"\",MAX(A$1:A11)+1)","v":11},"Player11","Player11",4183,"Halflings","Wales"]
[{"$f":"IF(B13=\"\",\"\",MAX(A$1:A12)+1)","v":12},"Player12","Player12",18629,"Humans","Wales"]
[{"$f":"IF(B14=\"\",\"\",MAX(A$1:A13)+1)","v":13},"Player13","Player13",3329,"Khemri","Wales"]
[{"$f":"IF(B15=\"\",\"\",MAX(A$1:A14)+1)","v":14},"Player14","Player14",10939,"Norse","Wales"]
[{"$f":"IF(B16=\"\",\"\",MAX(A$1:A15)+1)","v":15},"Player15","Player15",8802,"Vampires","Wales"]
[{"$f":"IF(B17=\"\",\"\",MAX(A$1:A16)+1)","v":16},"Player16","Player16",9576,"Chaos","Ireland"]
[{"$f":"IF(B18=\"\",\"\",MAX(A$1:A17)+1)","v":17},"Player17","Player17",15292,"Ogres","Ireland"]
[{"$f":"IF(B19=\"\",\"\",MAX(A$1:A18)+1)","v":18},"Player18","Player18",9230,"Undead","Ireland"]
[{"$f":"IF(B20=\"\",\"\",MAX(A$1:A19)+1)","v":19},"Player19","Player19",13421,"Khemri","Ireland"]
[{"$f":"IF(B21=\"\",\"\",MAX(A$1:A20)+1)","v":20},"Player20","Player20",15211,"Wood Elves","Ireland"]
[]
[]
[]
[]
[{"$f":"IF(B26=\"\",\"\",MAX(A$1:A25)+1)","v":""}]
[{"$f":"IF(B27=\"\",\"\",MAX(A$1:A26)+1)","v":""}]
[{"$f":"IF(B28=\"\",\"\",MAX(A$1:A27)+1)","v":""}]
[{"$f":"IF(B29=\"\",\"\",MAX(A$1:A28)+1)","v":""}]
[{"$f":"IF(B30=\"\",\"\",MAX(A$1:A29)+1)","v":""}]
[{"$f":"IF(B31=\"\",\"\",MAX(A$1:A30)+1)","v":""}]
[{"$f":"IF(B32=\"\",\"\",MAX(A$1:A31)+1)","v":""}]
[{"$f":"IF(B33=\"\",\"\",MAX(A$1:A32)+1)","v":""}]
[{"$f":"IF(B34=\"\",\"\",MAX(A$1:A33)+1)","v":""}]
[{"$f":"IF(B35=\"\",\"\",MAX(A$1:A34)+1)","v":""}]
[{"$f":"IF(B36=\"\",\"\",MAX(A$1:A35)+1)","v":""}]
[{"$f":"IF(B37=\"\",\"\",MAX(A$1:A36)+1)","v":""}]
[{"$f":"IF(B38=\"\",\"\",MAX(A$1:A37)+1)","v":""}]
[{"$f":"IF(B39=\"\",\"\",MAX(A$1:A38)+1)","v":""}]
[{"$f":"IF(B40=\"\",\"\",MAX(A$1:A39)+1)","v":""}]
[{"$f":"IF(B41=\"\",\"\",MAX(A$1:A40)+1)","v":""}]
[{"$f":"IF(B42=\"\",\"\",MAX(A$1:A41)+1)","v":""}]
[{"$f":"IF(B43=\"\",\"\",MAX(A$1:A42)+1)","v":""}]
[{"$f":"IF(B44=\"\",\"\",MAX(A$1:A43)+1)","v":""}]
[{"$f":"IF(B45=\"\",\"\",MAX(A$1:A44)+1)","v":""}]
[{"$f":"IF(B46=\"\",\"\",MAX(A$1:A45)+1)","v":""}]
[{"$f":"IF(B47=\"\",\"\",MAX(A$1:A46)+1)","v":""}]
[{"$f":"IF(B48=\"\",\"\",MAX(A$1:A47)+1)","v":""}]
[{"$f":"IF(B49=\"\",\"\",MAX(A$1:A48)+1)","v":""}]
[{"$f":"IF(B50=\"\",\"\",MAX(A$1:A49)+1)","v":""}]
[{"$f":"IF(B51=\"\",\"\",MAX(A$1:A50)+1)","v":""}]

{"sheet":"Matrix","index":4,"n_rows":21,"n_cols":21,"rows_kept":21,"cut":false,"hidden":false,"merged":[]}
[null,"Alex","Mike","Linus","Player4","Player5","Player6","Player7","Player8","Player9","Player10","Player11","Player12","Player13","Player14","Player15","Player16","Player17","Player18","Player19","Player20"]
["Alex",null,"R3, 10 - 12",null,"R1, 19 - 7",null,null,null,null,null,null,"R4, 10 - 9",null,null,null,null,null,null,"R2, 8 - 23"]
["Mike","R3, 12 - 10",null,"R1, 13 - 10",null,null,null,null,"R2, 12 - 12",null,null,null,"R4, 6 - 22"]
["Linus",null,"R1, 10 - 13",null,null,null,null,"R3, 13 - 13",null,null,null,null,"R2, 22 - 6",null,null,"R4, 6 - 22"]
["Player4","R1, 7 - 19",null,null,null,null,null,null,null,null,null,null,"R3, 4 - 22","R4, 22 - 6",null,null,null,"R2, 9 - 24"]
["Player5",null,null,null,null,null,"R2, 22 - 10","R4, 23 - 8",null,"R1, 7 - 24",null,null,null,null,null,null,"R3, 20 - 4"]
["Player6",null,null,null,null,"R2, 10 - 22",null,null,null,null,null,"R1, 6 - 20",null,null,null,null,null,"R4, 23 - 6",null,null,"R3, 20 - 6"]
["Player7",null,null,"R3, 13 - 13",null,"R4, 8 - 23",null,null,null,null,null,null,null,null,"R2, 11 - 12",null,null,null,null,null,"R1, 22 - 5"]
["Player8",null,"R2, 12 - 12",null,null,null,null,null,null,null,"R4, 5 - 24",null,"R1, 11 - 10",null,null,"R3, 4 - 21"]
["Player9",null,null,null,null,"R1, 24 - 7",null,null,null,null,null,null,null,null,"R4, 11 - 10",null,"R2, 18 - 4",null,"R3, 11 - 11"]
["Player10",null,null,null,null,null,null,null,"R4, 24 - 5",null,null,null,null,"R3, 23 - 8",null,"R2, 2 - 23","R1, 5 - 25"]
["Player11","R4, 9 - 10",null,null,null,null,"R1, 20 - 6",null,null,null,null,null,null,null,"R3, 6 - 23",null,null,null,null,"R2, 11 - 8"]
["Player12",null,"R4, 22 - 6","R2, 6 - 22","R3, 22 - 4",null,null,null,"R1, 10 - 11"]
["Player13",null,null,null,"R4, 6 - 22",null,null,null,null,null,"R3, 8 - 23",null,null,null,null,null,null,null,null,"R1, 5 - 21","R2, 5 - 18"]
["Player14",null,null,null,null,null,null,"R2, 12 - 11",null,"R4, 10 - 11",null,"R3, 23 - 6",null,null,null,null,null,"R1, 21 - 7"]
["Player15",null,null,"R4, 22 - 6",null,null,null,null,"R3, 21 - 4",null,"R2, 23 - 2",null,null,null,null,null,null,null,"R1, 1 - 19"]
["Player16",null,null,null,null,"R3, 4 - 20",null,null,null,"R2, 4 - 18","R1, 25 - 5",null,null,null,null,null,null,null,null,null,"R4, 8 - 23"]
["Player17",null,null,null,"R2, 24 - 9",null,"R4, 6 - 23",null,null,null,null,null,null,null,"R1, 7 - 21",null,null,null,null,"R3, 3 - 20"]
["Player18","R2, 23 - 8",null,null,null,null,null,null,null,"R3, 11 - 11",null,null,null,null,null,"R1, 19 - 1",null,null,null,"R4, 21 - 5"]
["Player19",null,null,null,null,null,null,null,null,null,null,"R2, 8 - 11",null,"R1, 21 - 5",null,null,null,"R3, 20 - 3","R4, 5 - 21"]
["Player20",null,null,null,null,null,"R3, 6 - 20","R1, 5 - 22",null,null,null,null,null,"R2, 18 - 5",null,null,"R4, 23 - 8"]

{"sheet":"Table","index":5,"n_rows":21,"n_cols":14,"rows_kept":21,"cut":false,"hidden":false,"merged":[]}
["Player","Points","TD For","TD Against","TD Net","Cas For","Cas Against","Cas Net","Interceptions","Long Bombs","Wins","Draws","Losses","Opp Score"]
["Player18",74,7,3,4,4,2,2,7,5,3,1,null,232]
["Player5",72,8,6,2,5,4,1,6,7,3,null,1,218]
["Player15",67,7,2,5,7,4,3,4,6,3,null,1,211]
["Player14",66,6,4,2,7,6,1,7,7,2,2,null,204]
["Player9",64,6,3,3,7,7,0,5,7,2,2,null,253]
["Player12",60,5,5,0,5,4,1,7,8,2,1,1,168]
["Player6",59,9,8,1,7,6,1,3,8,2,null,2,210]
["Player19",54,4,3,1,3,7,-4,6,5,2,1,1,184]
["Player10",54,7,7,0,4,8,-4,3,7,2,null,2,164]
["Player7",54,6,7,-1,7,8,-1,6,9,1,2,1,241]
["Player20",52,7,7,0,7,5,2,6,2,2,null,2,178]
["Linus",51,7,7,0,4,8,-4,5,5,1,2,1,224]
["Alex",47,5,5,0,2,4,-2,4,6,1,2,1,205]
["Player11",46,3,3,0,1,4,-3,5,8,1,2,1,226]
["Mike",43,5,6,-1,7,1,6,7,7,null,3,1,190]
["Player4",42,5,9,-4,5,6,-1,7,8,1,null,3,171]
["Player16",41,5,6,-1,6,4,2,8,6,1,null,3,242]
["Player17",40,5,8,-3,9,7,2,4,9,1,null,3,221]
["Player8",32,3,7,-4,3,8,-5,6,6,null,2,2,224]
["Player13",24,5,9,-4,7,4,3,5,5,null,null,4,202]

{"sheet":"Round1","index":6,"n_rows":21,"n_cols":23,"rows_kept":21,"cut":false,"hidden":false,"merged":[]}
["Swaps: 0","Home Player","Away Player","Home Points","Away Points","Home TD","Away TD","Home Cas","Away Cas","Home Interceptions","Away Interceptions","Home Long Bombs","Away Long Bombs","Home Group","Away Group",null,null,null,"Points Before Games",null,null,"Points After Games"]
[null,"Player16","Player10",{"$f":"fctScore(F2,G2,H2,J2,L2)","v":25},{"$f":"fctScore(G2,F2,I2,K2,M2)","v":5},3,1,2,1,3,1,2,1,"Ireland","Scotland",null,null,null,"Player16",0,null,"Player16",25]
[null,"Player18","Player15",{"$f":"fctScore(F3,G3,H3,J3,L3)","v":19},{"$f":"fctScore(G3,F3,I3,K3,M3)","v":1},1,0,1,1,2,0,1,0,"Ireland","Wales",null,null,null,"Player10",0,null,"Player9",24]
[null,"Player17","Player14",7,21,1,2,2,3,2,2,2,1,"Ireland","Wales",null,null,null,"Player18",0,null,"Player7",22]
[null,"Player9","Player5",24,7,3,1,2,2,2,2,2,2,"Scotland","England",null,null,null,"Player15",0,null,"Player14",21]
[null,"Player20","Player7",5,22,1,2,2,2,1,1,1,3,"Ireland","Scotland",null,null,null,"Player17",0,null,"Player19",21]
[null,"Mike","Linus",13,10,2,2,1,0,1,0,2,0,"England","England",null,null,null,"Player14",0,null,"Player11",20]
[null,"Player8","Player12",11,10,1,1,0,2,2,1,1,1,"Scotland","Wales",null,null,null,"Player9",0,null,"Player18",19]
[null,"Player11","Player6",20,6,2,1,0,3,0,1,2,2,"Wales","Scotland",null,null,null,"Player5",0,null,"Alex",19]
[null,"Player19","Player13",21,5,2,1,1,3,2,1,1,1,"Ireland","Wales",null,null,null,"Player20",0,null,"Mike",13]
[null,"Player4","Alex",7,19,1,2,2,2,2,0,2,1,"England","England",null,null,null,"Player7",0,null,"Player8",11]
[null,null,null,null,null,null,null,null,null,null,null,null,null,null,null,null,null,null,"Mike",0,null,"Linus",10]
[null,null,null,null,null,null,null,null,null,null,null,null,null,null,null,null,null,null,"Linus",0,null,"Player12",10]
[null,null,null,null,null,null,null,null,null,null,null,null,null,null,null,null,null,null,"Player8",0,null,"Player4",7]
[null,null,null,null,null,null,null,null,null,null,null,null,null,null,null,null,null,null,"Player12",0,null,"Player17",7]
[null,null,null,null,null,null,null,null,null,null,null,null,null,null,null,null,null,null,"Player11",0,null,"Player5",7]
[null,null,null,null,null,null,null,null,null,null,null,null,null,null,null,null,null,null,"Player6",0,null,"Player6",6]
[null,null,null,null,null,null,null,null,null,null,null,null,null,null,null,null,null,null,"Player19",0,null,"Player20",5]
[null,null,null,null,null,null,null,null,null,null,null,null,null,null,null,null,null,null,"Player13",0,null,"Player13",5]
[null,null,null,null,null,null,null,null,null,null,null,null,null,null,null,null,null,null,"Player4",0,null,"Player10",5]
[null,null,null,null,null,null,null,null,null,null,null,null,null,null,null,null,null,null,"Alex",0,null,"Player15",1]

{"sheet":"Round2","index":7,"n_rows":21,"n_cols":23,"rows_kept":21,"cut":false,"hidden":false,"merged":[]}
["Swaps: 0","Home Player","Away Player","Home Points","Away Points","Home TD","Away TD","Home Cas","Away Cas","Home Interceptions","Away Interceptions","Home Long Bombs","Away Long Bombs","Home Group","Away Group",null,null,null,"Points Before Games",null,null,"Points After Games"]
[null,"Player16","Player9",{"$f":"fctScore(F2,G2,H2,J2,L2)","v":4},{"$f":"fctScore(G2,F2,I2,K2,M2)","v":18},0,1,3,1,2,1,1,1,"Ireland","Scotland",null,null,null,"Player16",25,null,"Player9",42]
[null,"Player7","Player14",{"$f":"fctScore(F3,G3,H3,J3,L3)","v":11},{"$f":"fctScore(G3,F3,I3,K3,M3)","v":12},1,1,1,2,1,2,2,2,"Scotland","Wales",null,null,null,"Player9",24,null,"Player18",42]
[null,"Player19","Player11",8,11,0,0,0,1,1,2,1,3,"Ireland","Wales",null,null,null,"Player7",22,null,"Player7",33]
[null,"Player18","Alex",23,8,3,2,1,0,1,0,2,3,"Ireland","England",null,null,null,"Player14",21,null,"Player14",33]
[null,"Mike","Player8",12,12,1,1,3,0,2,2,2,2,"England","Scotland",null,null,null,"Player19",21,null,"Linus",32]
[null,"Linus","Player12",22,6,3,0,1,2,1,2,1,3,"England","Wales",null,null,null,"Player11",20,null,"Player11",31]
[null,"Player4","Player17",9,24,1,3,1,2,3,1,3,3,"England","Ireland",null,null,null,"Player18",19,null,"Player17",31]
[null,"Player5","Player6",22,10,3,2,2,1,0,2,2,3,"England","Scotland",null,null,null,"Alex",19,null,"Player19",29]
[null,"Player20","Player13",18,5,1,0,2,0,1,1,1,3,"Ireland","Wales",null,null,null,"Mike",13,null,"Player16",29]
[null,"Player10","Player15",2,23,0,2,2,2,0,2,1,3,"Scotland","Wales",null,null,null,"Player8",11,null,"Player5",29]
[null,null,null,null,null,null,null,null,null,null,null,null,null,null,null,null,null,null,"Linus",10,null,"Alex",27]
[null,null,null,null,null,null,null,null,null,null,null,null,null,null,null,null,null,null,"Player12",10,null,"Mike",25]
[null,null,null,null,null,null,null,null,null,null,null,null,null,null,null,null,null,null,"Player4",7,null,"Player15",24]
[null,null,null,null,null,null,null,null,null,null,null,null,null,null,null,null,null,null,"Player17",7,null,"Player8",23]
[null,null,null,null,null,null,null,null,null,null,null,null,null,null,null,null,null,null,"Player5",7,null,"Player20",23]
[null,null,null,null,null,null,null,null,null,null,null,null,null,null,null,null,null,null,"Player6",6,null,"Player6",16]
[null,null,null,null,null,null,null,null,null,null,null,null,null,null,null,null,null,null,"Player20",5,null,"Player4",16]
[null,null,null,null,null,null,null,null,null,null,null,null,null,null,null,null,null,null,"Player13",5,null,"Player12",16]
[null,null,null,null,null,null,null,null,null,null,null,null,null,null,null,null,null,null,"Player10",5,null,"Player13",10]
[null,null,null,null,null,null,null,null,null,null,null,null,null,null,null,null,null,null,"Player15",1,null,"Player10",7]

{"sheet":"Round3","index":8,"n_rows":21,"n_cols":23,"rows_kept":21,"cut":false,"hidden":false,"merged":[]}
["Swaps: 1","Home Player","Away Player","Home Points","Away Points","Home TD","Away TD","Home Cas","Away Cas","Home Interceptions","Away Interceptions","Home Long Bombs","Away Long Bombs","Home Group","Away Group",null,null,null,"Points Before Games",null,null,"Points After Games"]
[null,"Player9","Player18",{"$f":"fctScore(F2,G2,H2,J2,L2)","v":11},{"$f":"fctScore(G2,F2,I2,K2,M2)","v":11},1,1,1,1,1,2,2,1,"Scotland","Ireland",null,null,null,"Player9",42,null,"Player14",56]
[null,"Player7","Linus",{"$f":"fctScore(F3,G3,H3,J3,L3)","v":13},{"$f":"fctScore(G3,F3,I3,K3,M3)","v":13},2,2,3,3,1,2,2,1,"Scotland","England",null,null,null,"Player18",42,null,"Player9",53]
[null,"Player14","Player11",23,6,2,1,1,0,3,1,2,2,"Wales","Wales",null,null,null,"Player7",33,null,"Player18",53]
[null,"Player17","Player19",3,20,0,2,2,2,1,0,1,2,"Ireland","Ireland",null,null,null,"Player14",33,null,"Player19",49]
[null,"Player16","Player5",4,20,0,1,0,0,1,3,2,1,"Ireland","England",null,null,null,"Linus",32,null,"Player5",49]
[null,"Alex","Mike",10,12,1,1,0,1,1,3,1,1,"England","England",null,null,null,"Player11",31,null,"Player7",46]
[null,"Player15","Player8",21,4,2,1,2,1,1,0,2,1,"Wales","Scotland",null,null,null,"Player17",31,null,"Linus",45]
[null,"Player20","Player6",6,20,2,3,1,2,1,0,0,0,"Ireland","Scotland",null,null,null,"Player19",29,null,"Player15",45]
[null,"Player4","Player12",4,22,0,2,1,0,0,2,3,2,"England","Wales",null,null,null,"Player16",29,null,"Player12",38]
[null,"Player13","Player10",8,23,2,3,2,0,2,1,1,2,"Wales","Scotland",null,null,null,"Player5",29,null,"Mike",37]
[null,null,null,null,null,null,null,null,null,null,null,null,null,null,null,null,null,null,"Alex",27,null,"Player11",37]
[null,null,null,null,null,null,null,null,null,null,null,null,null,null,null,null,null,null,"Mike",25,null,"Alex",37]
[null,null,null,null,null,null,null,null,null,null,null,null,null,null,null,null,null,null,"Player15",24,null,"Player6",36]
[null,null,null,null,null,null,null,null,null,null,null,null,null,null,null,null,null,null,"Player8",23,null,"Player17",34]
[null,null,null,null,null,null,null,null,null,null,null,null,null,null,null,null,null,null,"Player20",23,null,"Player16",33]
[null,null,null,null,null,null,null,null,null,null,null,null,null,null,null,null,null,null,"Player6",16,null,"Player10",30]
[null,null,null,null,null,null,null,null,null,null,null,null,null,null,null,null,null,null,"Player4",16,null,"Player20",29]
[null,null,null,null,null,null,null,null,null,null,null,null,null,null,null,null,null,null,"Player12",16,null,"Player8",27]
[null,null,null,null,null,null,null,null,null,null,null,null,null,null,null,null,null,null,"Player13",10,null,"Player4",20]
[null,null,null,null,null,null,null,null,null,null,null,null,null,null,null,null,null,null,"Player10",7,null,"Player13",18]

{"sheet":"Round4","index":9,"n_rows":21,"n_cols":23,"rows_kept":21,"cut":false,"hidden":false,"merged":[]}
["Swaps: 1","Home Player","Away Player","Home Points","Away Points","Home TD","Away TD","Home Cas","Away Cas","Home Interceptions","Away Interceptions","Home Long Bombs","Away Long Bombs","Home Group","Away Group",null,null,null,"Points Before Games",null,null,"Points After Games"]
[null,"Player14","Player9",{"$f":"fctScore(F2,G2,H2,J2,L2)","v":10},{"$f":"fctScore(G2,F2,I2,K2,M2)","v":11},1,1,1,3,0,1,2,2,"Wales","Scotland",null,null,null,"Player14",56,null,"Player18",74]
[null,"Player18","Player19",{"$f":"fctScore(F3,G3,H3,J3,L3)","v":21},{"$f":"fctScore(G3,F3,I3,K3,M3)","v":5},2,0,1,0,2,3,1,1,"Ireland","Ireland",null,null,null,"Player9",53,null,"Player5",72]
[null,"Player5","Player7",23,8,3,1,1,1,1,3,2,2,"England","Scotland",null,null,null,"Player18",53,null,"Player15",67]
[null,"Linus","Player15",6,22,0,3,0,2,2,1,3,1,"England","Wales",null,null,null,"Player19",49,null,"Player14",66]
[null,"Player12","Mike",22,6,2,1,1,2,2,1,2,2,"Wales","England",null,null,null,"Player5",49,null,"Player9",64]
[null,"Player11","Alex",9,10,0,0,0,0,2,3,1,1,"Wales","England",null,null,null,"Player7",46,null,"Player12",60]
[null,"Player6","Player17",23,6,3,1,1,3,0,0,3,3,"Scotland","Ireland",null,null,null,"Linus",45,null,"Player6",59]
[null,"Player16","Player20",8,23,2,3,1,2,2,3,1,0,"Ireland","Ireland",null,null,null,"Player15",45,null,"Player19",54]
[null,"Player10","Player8",24,5,3,0,1,2,1,2,3,2,"Scotland","Scotland",null,null,null,"Player12",38,null,"Player10",54]
[null,"Player4","Player13",22,6,3,2,1,2,2,1,0,0,"England","Wales",null,null,null,"Mike",37,null,"Player7",54]
[null,null,null,null,null,null,null,null,null,null,null,null,null,null,null,null,null,null,"Player11",37,null,"Player20",52]
[null,null,null,null,null,null,null,null,null,null,null,null,null,null,null,null,null,null,"Alex",37,null,"Linus",51]
[null,null,null,null,null,null,null,null,null,null,null,null,null,null,null,null,null,null,"Player6",36,null,"Alex",47]
[null,null,null,null,null,null,null,null,null,null,null,null,null,null,null,null,null,null,"Player17",34,null,"Player11",46]
[null,null,null,null,null,null,null,null,null,null,null,null,null,null,null,null,null,null,"Player16",33,null,"Mike",43]
[null,null,null,null,null,null,null,null,null,null,null,null,null,null,null,null,null,null,"Player10",30,null,"Player4",42]
[null,null,null,null,null,null,null,null,null,null,null,null,null,null,null,null,null,null,"Player20",29,null,"Player16",41]
[null,null,null,null,null,null,null,null,null,null,null,null,null,null,null,null,null,null,"Player8",27,null,"Player17",40]
[null,null,null,null,null,null,null,null,null,null,null,null,null,null,null,null,null,null,"Player4",20,null,"Player8",32]
[null,null,null,null,null,null,null,null,null,null,null,null,null,null,null,null,null,null,"Player13",18,null,"Player13",24]

{"sheet":"Round5","index":10,"n_rows":0,"n_cols":0,"rows_kept":0,"cut":false,"hidden":false,"merged":[]}

{"sheet":"Round6","index":11,"n_rows":0,"n_cols":0,"rows_kept":0,"cut":false,"hidden":false,"merged":[]}

{"sheet":"Round7","index":12,"n_rows":0,"n_cols":0,"rows_kept":0,"cut":false,"hidden":false,"merged":[]}

{"sheet":"Round8","index":13,"n_rows":0,"n_cols":0,"rows_kept":0,"cut":false,"hidden":false,"merged":[]}

{"sheet":"Round9","index":14,"n_rows":0,"n_cols":0,"rows_kept":0,"cut":false,"hidden":false,"merged":[]}

{"sheet":"NAF","index":15,"n_rows":956,"n_cols":1,"rows_kept":956,"cut":false,"hidden":false,"merged":[]}
["<?xml version=\"1.0\" encoding=\"UTF-8\"?>"]
["<nafReport xmlns:blo=\"http://www.bloodbowl.net\">"]
["<organiser>me</organiser>"]
["<coaches>"]
["<coach>"]
["<name>Player1</name>"]
["<number>16552</number>"]
["<team>Amazons</team>"]
["</coach>"]
["<coach>"]
["<name>Player2</name>"]
["<number>15801</number>"]
["<team>Dark Elves</team>"]
["</coach>"]
["<coach>"]
["<name>Player3</name>"]
["<number>19993</number>"]
["<team>Slann</team>"]
["</coach>"]
["<coach>"]
["<name>Player4</name>"]
["<number>1783</number>"]
["<team>Elves</team>"]
["</coach>"]
["<coach>"]
["<name>Player5</name>"]
["<number>19138</number>"]
["<team>Vampires</team>"]
["</coach>"]
["<coach>"]
["<name>Player6</name>"]
["<number>14092</number>"]
["<team>Humans</team>"]
["</coach>"]
["<coach>"]
["<name>Player7</name>"]
["<number>19300</number>"]
["<team>High Elves</team>"]
["</coach>"]
["<coach>"]
["<name>Player8</name>"]
["<number>12730</number>"]
["<team>Underworld</team>"]
["</coach>"]
["<coach>"]
["<name>Player9</name>"]
["<number>11101</number>"]
["<team>Underworld</team>"]
["</coach>"]
["<coach>"]
["<name>Player10</name>"]
["<number>12383</number>"]
["<team>Ogres</team>"]
["</coach>"]
["<coach>"]
["<name>Player11</name>"]
["<number>3919</number>"]
["<team>Wood Elves</team>"]
["</coach>"]
["<coach>"]
["<name>Player12</name>"]
["<number>18365</number>"]
["<team>Slann</team>"]
["</coach>"]
["<coach>"]
["<name>Player13</name>"]
["<number>3064</number>"]
["<team>Chaos Dwarves</team>"]
["</coach>"]
["<coach>"]
["<name>Player14</name>"]
["<number>10674</number>"]
["<team>Vampires</team>"]
["</coach>"]
["<coach>"]
["<name>Player15</name>"]
["<number>8538</number>"]
["<team>Lizardmen</team>"]
["</coach>"]
["<coach>"]
["<name>Player16</name>"]
["<number>9311</number>"]
["<team>Ogres</team>"]
["</coach>"]
["<coach>"]
["<name>Player17</name>"]
["<number>15028</number>"]
["<team>Amazons</team>"]
["</coach>"]
["<coach>"]
["<name>Player18</name>"]
["<number>8965</number>"]
["<team>Khemri</team>"]
["</coach>"]
["<coach>"]
["<name>Player19</name>"]
["<number>13157</number>"]
["<team>Undead</team>"]
["</coach>"]
["<coach>"]
["<name>Player20</name>"]
["<number>14947</number>"]
["<team>Goblins</team>"]
["</coach>"]
["</coaches>"]
["<game>"]
["<timestamp>2016-06-25 01:00</timestamp>"]
["<playerRecord>"]
["<name>Player9</name>"]
["<number>11101</number>"]
["<teamRating>100</teamRating>"]
["<touchDowns>5</touchDowns>"]
["<badlyHurt>2</badlyHurt>"]
["</playerRecord>"]
["<playerRecord>"]
["<name>Player8</name>"]
["<number>12730</number>"]
["<teamRating>100</teamRating>"]
["<touchDowns>5</touchDowns>"]
["<badlyHurt>2</badlyHurt>"]
["</playerRecord>"]
["</game>"]
["<game>"]
["<timestamp>2016-06-25 01:00</timestamp>"]
["<playerRecord>"]
["<name>Player20</name>"]
["<number>14947</number>"]
["<teamRating>100</teamRating>"]
["<touchDowns>9</touchDowns>"]
["<badlyHurt>2</badlyHurt>"]
["</playerRecord>"]
["<playerRecord>"]
["<name>Player14</name>"]
["<number>10674</number>"]
["<teamRating>100</teamRating>"]
["<touchDowns>2</touchDowns>"]
["<badlyHurt>1</badlyHurt>"]
["</playerRecord>"]
["</game>"]
["<game>"]
["<timestamp>2016-06-25 01:00</timestamp>"]
["<playerRecord>"]
["<name>Player11</name>"]
["<number>3919</number>"]
["<teamRating>100</teamRating>"]
["<touchDowns>6</touchDowns>"]
["<badlyHurt>2</badlyHurt>"]
["</playerRecord>"]
["<playerRecord>"]
["<name>Player2</name>"]
["<number>15801</number>"]
["<teamRating>100</teamRating>"]
["<touchDowns>7</touchDowns>"]
["<badlyHurt>2</badlyHurt>"]
["</playerRecord>"]
["</game>"]
["<game>"]
["<timestamp>2016-06-25 01:00</timestamp>"]
["<playerRecord>"]
["<name>Player18</name>"]
["<number>8965</number>"]
["<teamRating>100</teamRating>"]
["<touchDowns>12</touchDowns>"]
["<badlyHurt>2</badlyHurt>"]
["</playerRecord>"]
["<playerRecord>"]
["<name>Player3</name>"]
["<number>19993</number>"]
["<teamRating>100</teamRating>"]
["<touchDowns>3</touchDowns>"]
["<badlyHurt>0</badlyHurt>"]
["</playerRecord>"]
["</game>"]
["<game>"]
["<timestamp>2016-06-25 01:00</timestamp>"]
["<playerRecord>"]
["<name>Player19</name>"]
["<number>13157</number>"]
["<teamRating>100</teamRating>"]
["<touchDowns>13</touchDowns>"]
["<badlyHurt>3</badlyHurt>"]
["</playerRecord>"]
["<playerRecord>"]
["<name>Player15</name>"]
["<number>8538</number>"]
["<teamRating>100</teamRating>"]
["<touchDowns>3</touchDowns>"]
["<badlyHurt>1</badlyHurt>"]
["</playerRecord>"]
["</game>"]
["<game>"]
["<timestamp>2016-06-25 01:00</timestamp>"]
["<playerRecord>"]
["<name>Player4</name>"]
["<number>1783</number>"]
["<teamRating>100</teamRating>"]
["<touchDowns>8</touchDowns>"]
["<badlyHurt>2</badlyHurt>"]
["</playerRecord>"]
["<playerRecord>"]
["<name>Player7</name>"]
["<number>19300</number>"]
["<teamRating>100</teamRating>"]
["<touchDowns>6</touchDowns>"]
["<badlyHurt>2</badlyHurt>"]
["</playerRecord>"]
["</game>"]
["<game>"]
["<timestamp>2016-06-25 01:00</timestamp>"]
["<playerRecord>"]
["<name>Player10</name>"]
["<number>12383</number>"]
["<teamRating>100</teamRating>"]
["<touchDowns>5</touchDowns>"]
["<badlyHurt>2</badlyHurt>"]
["</playerRecord>"]
["<playerRecord>"]
["<name>Player17</name>"]
["<number>15028</number>"]
["<teamRating>100</teamRating>"]
["<touchDowns>5</touchDowns>"]
["<badlyHurt>2</badlyHurt>"]
["</playerRecord>"]
["</game>"]
["<game>"]
["<timestamp>2016-06-25 01:00</timestamp>"]
["<playerRecord>"]
["<name>Player16</name>"]
["<number>9311</number>"]
["<teamRating>100</teamRating>"]
["<touchDowns>7</touchDowns>"]
["<badlyHurt>1</badlyHurt>"]
["</playerRecord>"]
["<playerRecord>"]
["<name>Player6</name>"]
["<number>14092</number>"]
["<teamRating>100</teamRating>"]
["<touchDowns>6</touchDowns>"]
["<badlyHurt>1</badlyHurt>"]
["</playerRecord>"]
["</game>"]
["<game>"]
["<timestamp>2016-06-25 01:00</timestamp>"]
["<playerRecord>"]
["<name>Player12</name>"]
["<number>18365</number>"]
["<teamRating>100</teamRating>"]
["<touchDowns>3</touchDowns>"]
["<badlyHurt>0</badlyHurt>"]
["</playerRecord>"]
["<playerRecord>"]
["<name>Player1</name>"]
["<number>16552</number>"]
["<teamRating>100</teamRating>"]
["<touchDowns>12</touchDowns>"]
["<badlyHurt>2</badlyHurt>"]
["</playerRecord>"]
["</game>"]
["<game>"]
["<timestamp>2016-06-25 01:00</timestamp>"]
["<playerRecord>"]
["<name>Player13</name>"]
["<number>3064</number>"]
["<teamRating>100</teamRating>"]
["<touchDowns>3</touchDowns>"]
["<badlyHurt>1</badlyHurt>"]
["</playerRecord>"]
["<playerRecord>"]
["<name>Player5</name>"]
["<number>19138</number>"]
["<teamRating>100</teamRating>"]
["<touchDowns>10</touchDowns>"]
["<badlyHurt>2</badlyHurt>"]
["</playerRecord>"]
["</game>"]
["<game>"]
["<timestamp>2016-06-25 02:00</timestamp>"]
["<playerRecord>"]
["<name>Player19</name>"]
["<number>13157</number>"]
["<teamRating>100</teamRating>"]
["<touchDowns>14</touchDowns>"]
["<badlyHurt>3</badlyHurt>"]
["</playerRecord>"]
["<playerRecord>"]
["<name>Player1</name>"]
["<number>16552</number>"]
["<teamRating>100</teamRating>"]
["<touchDowns>2</touchDowns>"]
["<badlyHurt>1</badlyHurt>"]
["</playerRecord>"]
["</game>"]
["<game>"]
["<timestamp>2016-06-25 02:00</timestamp>"]
["<playerRecord>"]
["<name>Player18</name>"]
["<number>8965</number>"]
["<teamRating>100</teamRating>"]
["<touchDowns>8</touchDowns>"]
["<badlyHurt>1</badlyHurt>"]
["</playerRecord>"]
["<playerRecord>"]
["<name>Player5</name>"]
["<number>19138</number>"]
["<teamRating>100</teamRating>"]
["<touchDowns>2</touchDowns>"]
["<badlyHurt>0</badlyHurt>"]
["</playerRecord>"]
["</game>"]
["<game>"]
["<timestamp>2016-06-25 02:00</timestamp>"]
["<playerRecord>"]
["<name>Player20</name>"]
["<number>14947</number>"]
["<teamRating>100</teamRating>"]
["<touchDowns>4</touchDowns>"]
["<badlyHurt>1</badlyHurt>"]
["</playerRecord>"]
["<playerRecord>"]
["<name>Player4</name>"]
["<number>1783</number>"]
["<teamRating>100</teamRating>"]
["<touchDowns>11</touchDowns>"]
["<badlyHurt>2</badlyHurt>"]
["</playerRecord>"]
["</game>"]
["<game>"]
["<timestamp>2016-06-25 02:00</timestamp>"]
["<playerRecord>"]
["<name>Player16</name>"]
["<number>9311</number>"]
["<teamRating>100</teamRating>"]
["<touchDowns>14</touchDowns>"]
["<badlyHurt>3</badlyHurt>"]
["</playerRecord>"]
["<playerRecord>"]
["<name>Player2</name>"]
["<number>15801</number>"]
["<teamRating>100</teamRating>"]
["<touchDowns>3</touchDowns>"]
["<badlyHurt>1</badlyHurt>"]
["</playerRecord>"]
["</game>"]
["<game>"]
["<timestamp>2016-06-25 02:00</timestamp>"]
["<playerRecord>"]
["<name>Player11</name>"]
["<number>3919</number>"]
["<teamRating>100</teamRating>"]
["<touchDowns>4</touchDowns>"]
["<badlyHurt>1</badlyHurt>"]
["</playerRecord>"]
["<playerRecord>"]
["<name>Player6</name>"]
["<number>14092</number>"]
["<teamRating>100</teamRating>"]
["<touchDowns>10</touchDowns>"]
["<badlyHurt>2</badlyHurt>"]
["</playerRecord>"]
["</game>"]
["<game>"]
["<timestamp>2016-06-25 02:00</timestamp>"]
["<playerRecord>"]
["<name>Player7</name>"]
["<number>19300</number>"]
["<teamRating>100</teamRating>"]
["<touchDowns>6</touchDowns>"]
["<badlyHurt>2</badlyHurt>"]
["</playerRecord>"]
["<playerRecord>"]
["<name>Player17</name>"]
["<number>15028</number>"]
["<teamRating>100</teamRating>"]
["<touchDowns>5</touchDowns>"]
["<badlyHurt>2</badlyHurt>"]
["</playerRecord>"]
["</game>"]
["<game>"]
["<timestamp>2016-06-25 02:00</timestamp>"]
["<playerRecord>"]
["<name>Player10</name>"]
["<number>12383</number>"]
["<teamRating>100</teamRating>"]
["<touchDowns>4</touchDowns>"]
["<badlyHurt>1</badlyHurt>"]
["</playerRecord>"]
["<playerRecord>"]
["<name>Player8</name>"]
["<number>12730</number>"]
["<teamRating>100</teamRating>"]
["<touchDowns>6</touchDowns>"]
["<badlyHurt>1</badlyHurt>"]
["</playerRecord>"]
["</game>"]
["<game>"]
["<timestamp>2016-06-25 02:00</timestamp>"]
["<playerRecord>"]
["<name>Player9</name>"]
["<number>11101</number>"]
["<teamRating>100</teamRating>"]
["<touchDowns>8</touchDowns>"]
["<badlyHurt>2</badlyHurt>"]
["</playerRecord>"]
["<playerRecord>"]
["<name>Player3</name>"]
["<number>19993</number>"]
["<teamRating>100</teamRating>"]
["<touchDowns>5</touchDowns>"]
["<badlyHurt>1</badlyHurt>"]
["</playerRecord>"]
["</game>"]
["<game>"]
["<timestamp>2016-06-25 02:00</timestamp>"]
["<playerRecord>"]
["<name>Player15</name>"]
["<number>8538</number>"]
["<teamRating>100</teamRating>"]
["<touchDowns>9</touchDowns>"]
["<badlyHurt>2</badlyHurt>"]
["</playerRecord>"]
["<playerRecord>"]
["<name>Player13</name>"]
["<number>3064</number>"]
["<teamRating>100</teamRating>"]
["<touchDowns>5</touchDowns>"]
["<badlyHurt>1</badlyHurt>"]
["</playerRecord>"]
["</game>"]
["<game>"]
["<timestamp>2016-06-25 02:00</timestamp>"]
["<playerRecord>"]
["<name>Player12</name>"]
["<number>18365</number>"]
["<teamRating>100</teamRating>"]
["<touchDowns>4</touchDowns>"]
["<badlyHurt>1</badlyHurt>"]
["</playerRecord>"]
["<playerRecord>"]
["<name>Player14</name>"]
["<number>10674</number>"]
["<teamRating>100</teamRating>"]
["<touchDowns>10</touchDowns>"]
["<badlyHurt>2</badlyHurt>"]
["</playerRecord>"]
["</game>"]
["<game>"]
["<timestamp>2016-06-25 03:00</timestamp>"]
["<playerRecord>"]
["<name>Player19</name>"]
["<number>13157</number>"]
["<teamRating>100</teamRating>"]
["<touchDowns>4</touchDowns>"]
["<badlyHurt>0</badlyHurt>"]
["</playerRecord>"]
["<playerRecord>"]
["<name>Player16</name>"]
["<number>9311</number>"]
["<teamRating>100</teamRating>"]
["<touchDowns>8</touchDowns>"]
["<badlyHurt>1</badlyHurt>"]
["</playerRecord>"]
["</game>"]
["<game>"]
["<timestamp>2016-06-25 03:00</timestamp>"]
["<playerRecord>"]
["<name>Player18</name>"]
["<number>8965</number>"]
["<teamRating>100</teamRating>"]
["<touchDowns>5</touchDowns>"]
["<badlyHurt>1</badlyHurt>"]
["</playerRecord>"]
["<playerRecord>"]
["<name>Player4</name>"]
["<number>1783</number>"]
["<teamRating>100</teamRating>"]
["<touchDowns>6</touchDowns>"]
["<badlyHurt>1</badlyHurt>"]
["</playerRecord>"]
["</game>"]
["<game>"]
["<timestamp>2016-06-25 03:00</timestamp>"]
["<playerRecord>"]
["<name>Player6</name>"]
["<number>14092</number>"]
["<teamRating>100</teamRating>"]
["<touchDowns>3</touchDowns>"]
["<badlyHurt>0</badlyHurt>"]
["</playerRecord>"]
["<playerRecord>"]
["<name>Player1</name>"]
["<number>16552</number>"]
["<teamRating>100</teamRating>"]
["<touchDowns>4</touchDowns>"]
["<badlyHurt>0</badlyHurt>"]
["</playerRecord>"]
["</game>"]
["<game>"]
["<timestamp>2016-06-25 03:00</timestamp>"]
["<playerRecord>"]
["<name>Player9</name>"]
["<number>11101</number>"]
["<teamRating>100</teamRating>"]
["<touchDowns>10</touchDowns>"]
["<badlyHurt>3</badlyHurt>"]
["</playerRecord>"]
["<playerRecord>"]
["<name>Player20</name>"]
["<number>14947</number>"]
["<teamRating>100</teamRating>"]
["<touchDowns>3</touchDowns>"]
["<badlyHurt>2</badlyHurt>"]
["</playerRecord>"]
["</game>"]
["<game>"]
["<timestamp>2016-06-25 03:00</timestamp>"]
["<playerRecord>"]
["<name>Player15</name>"]
["<number>8538</number>"]
["<teamRating>100</teamRating>"]
["<touchDowns>7</touchDowns>"]
["<badlyHurt>1</badlyHurt>"]
["</playerRecord>"]
["<playerRecord>"]
["<name>Player5</name>"]
["<number>19138</number>"]
["<teamRating>100</teamRating>"]
["<touchDowns>4</touchDowns>"]
["<badlyHurt>1</badlyHurt>"]
["</playerRecord>"]
["</game>"]
["<game>"]
["<timestamp>2016-06-25 03:00</timestamp>"]
["<playerRecord>"]
["<name>Player14</name>"]
["<number>10674</number>"]
["<teamRating>100</teamRating>"]
["<touchDowns>13</touchDowns>"]
["<badlyHurt>3</badlyHurt>"]
["</playerRecord>"]
["<playerRecord>"]
["<name>Player7</name>"]
["<number>19300</number>"]
["<teamRating>100</teamRating>"]
["<touchDowns>2</touchDowns>"]
["<badlyHurt>0</badlyHurt>"]
["</playerRecord>"]
["</game>"]
["<game>"]
["<timestamp>2016-06-25 03:00</timestamp>"]
["<playerRecord>"]
["<name>Player8</name>"]
["<number>12730</number>"]
["<teamRating>100</teamRating>"]
["<touchDowns>2</touchDowns>"]
["<badlyHurt>1</badlyHurt>"]
["</playerRecord>"]
["<playerRecord>"]
["<name>Player2</name>"]
["<number>15801</number>"]
["<teamRating>100</teamRating>"]
["<touchDowns>14</touchDowns>"]
["<badlyHurt>3</badlyHurt>"]
["</playerRecord>"]
["</game>"]
["<game>"]
["<timestamp>2016-06-25 03:00</timestamp>"]
["<playerRecord>"]
["<name>Player17</name>"]
["<number>15028</number>"]
["<teamRating>100</teamRating>"]
["<touchDowns>11</touchDowns>"]
["<badlyHurt>3</badlyHurt>"]
["</playerRecord>"]
["<playerRecord>"]
["<name>Player11</name>"]
["<number>3919</number>"]
["<teamRating>100</teamRating>"]
["<touchDowns>4</touchDowns>"]
["<badlyHurt>2</badlyHurt>"]
["</playerRecord>"]
["</game>"]
["<game>"]
["<timestamp>2016-06-25 03:00</timestamp>"]
["<playerRecord>"]
["<name>Player10</name>"]
["<number>12383</number>"]
["<teamRating>100</teamRating>"]
["<touchDowns>9</touchDowns>"]
["<badlyHurt>1</badlyHurt>"]
["</playerRecord>"]
["<playerRecord>"]
["<name>Player13</name>"]
["<number>3064</number>"]
["<teamRating>100</teamRating>"]
["<touchDowns>1</touchDowns>"]
["<badlyHurt>0</badlyHurt>"]
["</playerRecord>"]
["</game>"]
["<game>"]
["<timestamp>2016-06-25 03:00</timestamp>"]
["<playerRecord>"]
["<name>Player3</name>"]
["<number>19993</number>"]
["<teamRating>100</teamRating>"]
["<touchDowns>2</touchDowns>"]
["<badlyHurt>0</badlyHurt>"]
["</playerRecord>"]
["<playerRecord>"]
["<name>Player12</name>"]
["<number>18365</number>"]
["<teamRating>100</teamRating>"]
["<touchDowns>13</touchDowns>"]
["<badlyHurt>2</badlyHurt>"]
["</playerRecord>"]
["</game>"]
["<game>"]
["<timestamp>2016-06-25 04:00</timestamp>"]
["<playerRecord>"]
["<name>Player19</name>"]
["<number>13157</number>"]
["<teamRating>100</teamRating>"]
["<touchDowns>5</touchDowns>"]
["<badlyHurt>1</badlyHurt>"]
["</playerRecord>"]
["<playerRecord>"]
["<name>Player4</name>"]
["<number>1783</number>"]
["<teamRating>100</teamRating>"]
["<touchDowns>5</touchDowns>"]
["<badlyHurt>1</badlyHurt>"]
["</playerRecord>"]
["</game>"]
["<game>"]
["<timestamp>2016-06-25 04:00</timestamp>"]
["<playerRecord>"]
["<name>Player16</name>"]
["<number>9311</number>"]
["<teamRating>100</teamRating>"]
["<touchDowns>8</touchDowns>"]
["<badlyHurt>2</badlyHurt>"]
["</playerRecord>"]
["<playerRecord>"]
["<name>Player18</name>"]
["<number>8965</number>"]
["<teamRating>100</teamRating>"]
["<touchDowns>8</touchDowns>"]
["<badlyHurt>2</badlyHurt>"]
["</playerRecord>"]
["</game>"]
["<game>"]
["<timestamp>2016-06-25 04:00</timestamp>"]
["<playerRecord>"]
["<name>Player14</name>"]
["<number>10674</number>"]
["<teamRating>100</teamRating>"]
["<touchDowns>9</touchDowns>"]
["<badlyHurt>2</badlyHurt>"]
["</playerRecord>"]
["<playerRecord>"]
["<name>Player2</name>"]
["<number>15801</number>"]
["<teamRating>100</teamRating>"]
["<touchDowns>2</touchDowns>"]
["<badlyHurt>1</badlyHurt>"]
["</playerRecord>"]
["</game>"]
["<game>"]
["<timestamp>2016-06-25 04:00</timestamp>"]
["<playerRecord>"]
["<name>Player9</name>"]
["<number>11101</number>"]
["<teamRating>100</teamRating>"]
["<touchDowns>2</touchDowns>"]
["<badlyHurt>0</badlyHurt>"]
["</playerRecord>"]
["<playerRecord>"]
["<name>Player17</name>"]
["<number>15028</number>"]
["<teamRating>100</teamRating>"]
["<touchDowns>13</touchDowns>"]
["<badlyHurt>2</badlyHurt>"]
["</playerRecord>"]
["</game>"]
["<game>"]
["<timestamp>2016-06-25 04:00</timestamp>"]
["<playerRecord>"]
["<name>Player12</name>"]
["<number>18365</number>"]
["<teamRating>100</teamRating>"]
["<touchDowns>1</touchDowns>"]
["<badlyHurt>0</badlyHurt>"]
["</playerRecord>"]
["<playerRecord>"]
["<name>Player15</name>"]
["<number>8538</number>"]
["<teamRating>100</teamRating>"]
["<touchDowns>7</touchDowns>"]
["<badlyHurt>1</badlyHurt>"]
["</playerRecord>"]
["</game>"]
["<game>"]
["<timestamp>2016-06-25 04:00</timestamp>"]
["<playerRecord>"]
["<name>Player6</name>"]
["<number>14092</number>"]
["<teamRating>100</teamRating>"]
["<touchDowns>4</touchDowns>"]
["<badlyHurt>1</badlyHurt>"]
["</playerRecord>"]
["<playerRecord>"]
["<name>Player10</name>"]
["<number>12383</number>"]
["<teamRating>100</teamRating>"]
["<touchDowns>5</touchDowns>"]
["<badlyHurt>1</badlyHurt>"]
["</playerRecord>"]
["</game>"]
["<game>"]
["<timestamp>2016-06-25 04:00</timestamp>"]
["<playerRecord>"]
["<name>Player1</name>"]
["<number>16552</number>"]
["<teamRating>100</teamRating>"]
["<touchDowns>10</touchDowns>"]
["<badlyHurt>2</badlyHurt>"]
["</playerRecord>"]
["<playerRecord>"]
["<name>Player5</name>"]
["<number>19138</number>"]
["<teamRating>100</teamRating>"]
["<touchDowns>3</touchDowns>"]
["<badlyHurt>1</badlyHurt>"]
["</playerRecord>"]
["</game>"]
["<game>"]
["<timestamp>2016-06-25 04:00</timestamp>"]
["<playerRecord>"]
["<name>Player20</name>"]
["<number>14947</number>"]
["<teamRating>100</teamRating>"]
["<touchDowns>4</touchDowns>"]
["<badlyHurt>2</badlyHurt>"]
["</playerRecord>"]
["<playerRecord>"]
["<name>Player7</name>"]
["<number>19300</number>"]
["<teamRating>100</teamRating>"]
["<touchDowns>11</touchDowns>"]
["<badlyHurt>3</badlyHurt>"]
["</playerRecord>"]
["</game>"]
["<game>"]
["<timestamp>2016-06-25 04:00</timestamp>"]
["<playerRecord>"]
["<name>Player11</name>"]
["<number>3919</number>"]
["<teamRating>100</teamRating>"]
["<touchDowns>1</touchDowns>"]
["<badlyHurt>0</badlyHurt>"]
["</playerRecord>"]
["<playerRecord>"]
["<name>Player8</name>"]
["<number>12730</number>"]
["<teamRating>100</teamRating>"]
["<touchDowns>11</touchDowns>"]
["<badlyHurt>2</badlyHurt>"]
["</playerRecord>"]
["</game>"]
["<game>"]
["<timestamp>2016-06-25 04:00</timestamp>"]
["<playerRecord>"]
["<name>Player3</name>"]
["<number>19993</number>"]
["<teamRating>100</teamRating>"]
["<touchDowns>5</touchDowns>"]
["<badlyHurt>2</badlyHurt>"]
["</playerRecord>"]
["<playerRecord>"]
["<name>Player13</name>"]
["<number>3064</number>"]
["<teamRating>100</teamRating>"]
["<touchDowns>9</touchDowns>"]
["<badlyHurt>3</badlyHurt>"]
["</playerRecord>"]
["</game>"]
["<game>"]
["<timestamp>2016-06-25 05:00</timestamp>"]
["<playerRecord>"]
["<name>Player16</name>"]
["<number>9311</number>"]
["<teamRating>100</teamRating>"]
["<touchDowns>5</touchDowns>"]
["<badlyHurt>1</badlyHurt>"]
["</playerRecord>"]
["<playerRecord>"]
["<name>Player14</name>"]
["<number>10674</number>"]
["<teamRating>100</teamRating>"]
["<touchDowns>7</touchDowns>"]
["<badlyHurt>1</badlyHurt>"]
["</playerRecord>"]
["</game>"]
["<game>"]
["<timestamp>2016-06-25 05:00</timestamp>"]
["<playerRecord>"]
["<name>Player19</name>"]
["<number>13157</number>"]
["<teamRating>100</teamRating>"]
["<touchDowns>12</touchDowns>"]
["<badlyHurt>2</badlyHurt>"]
["</playerRecord>"]
["<playerRecord>"]
["<name>Player17</name>"]
["<number>15028</number>"]
["<teamRating>100</teamRating>"]
["<touchDowns>0</touchDowns>"]
["<badlyHurt>0</badlyHurt>"]
["</playerRecord>"]
["</game>"]
["<game>"]
["<timestamp>2016-06-25 05:00</timestamp>"]
["<playerRecord>"]
["<name>Player18</name>"]
["<number>8965</number>"]
["<teamRating>100</teamRating>"]
["<touchDowns>13</touchDowns>"]
["<badlyHurt>3</badlyHurt>"]
["</playerRecord>"]
["<playerRecord>"]
["<name>Player1</name>"]
["<number>16552</number>"]
["<teamRating>100</teamRating>"]
["<touchDowns>2</touchDowns>"]
["<badlyHurt>1</badlyHurt>"]
["</playerRecord>"]
["</game>"]
["<game>"]
["<timestamp>2016-06-25 05:00</timestamp>"]
["<playerRecord>"]
["<name>Player4</name>"]
["<number>1783</number>"]
["<teamRating>100</teamRating>"]
["<touchDowns>0</touchDowns>"]
["<badlyHurt>0</badlyHurt>"]
["</playerRecord>"]
["<playerRecord>"]
["<name>Player15</name>"]
["<number>8538</number>"]
["<teamRating>100</teamRating>"]
["<touchDowns>14</touchDowns>"]
["<badlyHurt>3</badlyHurt>"]
["</playerRecord>"]
["</game>"]
["<game>"]
["<timestamp>2016-06-25 05:00</timestamp>"]
["<playerRecord>"]
["<name>Player2</name>"]
["<number>15801</number>"]
["<teamRating>100</teamRating>"]
["<touchDowns>9</touchDowns>"]
["<badlyHurt>2</badlyHurt>"]
["</playerRecord>"]
["<playerRecord>"]
["<name>Player9</name>"]
["<number>11101</number>"]
["<teamRating>100</teamRating>"]
["<touchDowns>4</touchDowns>"]
["<badlyHurt>1</badlyHurt>"]
["</playerRecord>"]
["</game>"]
["<game>"]
["<timestamp>2016-06-25 05:00</timestamp>"]
["<playerRecord>"]
["<name>Player7</name>"]
["<number>19300</number>"]
["<teamRating>100</teamRating>"]
["<touchDowns>3</touchDowns>"]
["<badlyHurt>0</badlyHurt>"]
["</playerRecord>"]
["<playerRecord>"]
["<name>Player8</name>"]
["<number>12730</number>"]
["<teamRating>100</teamRating>"]
["<touchDowns>3</touchDowns>"]
["<badlyHurt>0</badlyHurt>"]
["</playerRecord>"]
["</game>"]
["<game>"]
["<timestamp>2016-06-25 05:00</timestamp>"]
["<playerRecord>"]
["<name>Player10</name>"]
["<number>12383</number>"]
["<teamRating>100</teamRating>"]
["<touchDowns>13</touchDowns>"]
["<badlyHurt>3</badlyHurt>"]
["</playerRecord>"]
["<playerRecord>"]
["<name>Player12</name>"]
["<number>18365</number>"]
["<teamRating>100</teamRating>"]
["<touchDowns>4</touchDowns>"]
["<badlyHurt>1</badlyHurt>"]
["</playerRecord>"]
["</game>"]
["<game>"]
["<timestamp>2016-06-25 05:00</timestamp>"]
["<playerRecord>"]
["<name>Player6</name>"]
["<number>14092</number>"]
["<teamRating>100</teamRating>"]
["<touchDowns>4</touchDowns>"]
["<badlyHurt>2</badlyHurt>"]
["</playerRecord>"]
["<playerRecord>"]
["<name>Player5</name>"]
["<number>19138</number>"]
["<teamRating>100</teamRating>"]
["<touchDowns>11</touchDowns>"]
["<badlyHurt>3</badlyHurt>"]
["</playerRecord>"]
["</game>"]
["<game>"]
["<timestamp>2016-06-25 05:00</timestamp>"]
["<playerRecord>"]
["<name>Player13</name>"]
["<number>3064</number>"]
["<teamRating>100</teamRating>"]
["<touchDowns>13</touchDowns>"]
["<badlyHurt>3</badlyHurt>"]
["</playerRecord>"]
["<playerRecord>"]
["<name>Player20</name>"]
["<number>14947</number>"]
["<teamRating>100</teamRating>"]
["<touchDowns>2</touchDowns>"]
["<badlyHurt>0</badlyHurt>"]
["</playerRecord>"]
["</game>"]
["<game>"]
["<timestamp>2016-06-25 05:00</timestamp>"]
["<playerRecord>"]
["<name>Player3</name>"]
["<number>19993</number>"]
["<teamRating>100</teamRating>"]
["<touchDowns>10</touchDowns>"]
["<badlyHurt>3</badlyHurt>"]
["</playerRecord>"]
["<playerRecord>"]
["<name>Player11</name>"]
["<number>3919</number>"]
["<teamRating>100</teamRating>"]
["<touchDowns>5</touchDowns>"]
["<badlyHurt>2</badlyHurt>"]
["</playerRecord>"]
["</game>"]
["</nafReport>"]

{"sheet":"GroupMatrix","index":16,"n_rows":5,"n_cols":5,"rows_kept":5,"cut":false,"hidden":false,"merged":[]}
[null,"England","Scotland","Wales","Ireland"]
["England","Round 3","Round 4","Round 4","Round 3"]
["Scotland","Round 4","Round 4","Round 4","Round 4"]
["Wales","Round 4","Round 4","Round 3","Round 2"]
["Ireland","Round 3","Round 4","Round 2","Round 4"]

{"sheet":"GroupFixtures","index":17,"n_rows":0,"n_cols":0,"rows_kept":0,"cut":false,"hidden":false,"merged":[]}

{"sheet":"GroupTable","index":18,"n_rows":5,"n_cols":17,"rows_kept":5,"cut":false,"hidden":false,"merged":[]}
["Group","Points","TD For","TD Against","Net TDs","Cas For","Cas Against","Net Cas","Group Total TD Net","Group Total Cas For","Group Wins","Groups Draws","Group Losses","Individual Wins","Individual Draws","Individual Losses","Total Individual Points"]
["Ireland",69,71,60,11,75,68,7,78,70,7,0,3,25,5,20,690]
["Wales",60,59,58,1,73,58,15,67,86,3,4,3,19,12,19,628]
["Scotland",58,75,79,-4,69,94,-25,59,89,2,5,3,17,15,18,644]
["England",52,79,87,-8,63,60,3,65,83,0,6,4,14,18,18,628]